bitfinex-derivatives/quotes_BNBF0:USTF0_20250331
["timestamp","ask_amount","ask_price","bid_price","bid_amount"]
[1743433242235,0.28753677,605.73,604.51,0.33084647]
[1743433243139,0.83348068,605.88,604.51,0.33084647]
[1743433243339,0.83348068,605.89,604.51,0.33084647]
[1743433243543,0.28750114,605.87,604.51,0.33084647]
[1743433244839,2.186,605.86,604.51,0.33084647]
[1743433245335,2.4734762,605.86,604.51,0.33084647]
[1743433245741,0.83337463,605.85,604.51,0.33084647]
[1743433245940,0.83337463,605.84,604.51,0.33084647]
[1743433246141,0.83337463,605.83,604.51,0.33084647]
[1743433246337,0.83337463,605.82,604.51,0.33084647]
[1743433246643,0.83337463,605.81,604.51,0.33084647]
[1743433246942,0.83337463,605.8,604.51,0.33084647]
[1743433247242,0.83337463,605.79,604.51,0.33084647]
[1743433247443,0.83337463,605.78,604.51,0.33084647]
[1743433247642,0.83337463,605.77,604.51,0.33084647]
[1743433247838,0.83337463,605.76,604.51,0.33084647]
[1743433248037,0.83418347,605.75,604.51,0.33084647]
[1743433248243,0.83418347,605.74,604.51,0.33084647]
[1743433248439,0.83418347,605.73,604.51,0.33084647]
[1743433248640,0.83418347,605.72,604.51,0.33084647]
[1743433248839,0.83418347,605.74,604.51,0.33084647]
[1743433249050,0.83418347,605.73,604.51,0.33084647]
[1743433249343,0.83418347,605.72,604.51,0.33084647]
[1743433249544,0.83418347,605.71,604.51,0.33084647]
[1743433249754,0.83418347,605.7,604.51,0.33084647]
[1743433249939,0.83418347,605.69,604.51,0.33084647]
[1743433250144,0.83418347,605.68,604.51,0.33084647]
[1743433250342,0.83418347,605.74,604.51,0.33084647]
[1743433250647,0.83418347,605.73,604.51,0.33084647]
[1743433250841,0.83418347,605.72,604.51,0.33084647]
[1743433251047,0.83418347,605.71,604.51,0.33084647]
[1743433251242,0.83418347,605.7,604.51,0.33084647]
[1743433251445,0.83418347,605.69,604.51,0.33084647]
[1743433251741,0.83418347,605.71,604.51,0.33084647]
[1743433251942,0.83418347,605.7,604.51,0.33084647]
[1743433252150,0.83418347,605.69,604.51,0.33084647]
[1743433252342,0.83418347,605.68,604.51,0.33084647]
[1743433252541,0.83418347,605.71,604.51,0.33084647]
[1743433252741,0.83418347,605.7,604.51,0.33084647]
[1743433252945,0.83418347,605.69,604.51,0.33084647]
[1743433253142,0.83418347,605.68,604.51,0.33084647]
[1743433253443,0.83418347,605.67,604.51,0.33084647]
[1743433253645,0.83418347,605.71,604.51,0.33084647]
[1743433253852,0.83418347,605.7,604.51,0.33084647]
[1743433254049,0.83418347,605.69,604.51,0.33084647]
[1743433254248,0.83418347,605.68,604.51,0.33084647]
[1743433254446,0.83418347,605.67,604.51,0.33084647]
[1743433254650,0.83418347,605.66,604.51,0.33084647]
[1743433254855,0.83418347,605.65,604.51,0.33084647]
[1743433255056,0.83418347,605.64,604.51,0.33084647]
[1743433255257,0.83418347,605.63,604.51,0.33084647]
[1743433255555,0.83418347,605.62,604.51,0.33084647]
[1743433255757,0.83418347,605.61,604.51,0.33084647]
[1743433255958,0.83418347,605.6,604.51,0.33084647]
[1743433256157,0.83418347,605.59,604.51,0.33084647]
[1743433256359,0.83418347,605.58,604.51,0.33084647]
[1743433256554,2.18536877,605.68,604.51,0.33084647]
[1743433256755,0.83418347,605.67,604.51,0.33084647]
[1743433256956,0.83418347,605.66,604.51,0.33084647]
[1743433257155,0.83418347,605.65,604.51,0.33084647]
[1743433257358,0.83764037,605.64,604.51,0.33084647]
[1743433257553,0.83764037,605.63,604.51,0.33084647]
[1743433257752,0.83764037,605.62,604.51,0.33084647]
[1743433257960,0.83764037,605.61,604.51,0.33084647]
[1743433258159,0.83764037,605.6,604.51,0.33084647]
[1743433258359,0.83764037,605.59,604.51,0.33084647]
[1743433258560,0.83764037,605.58,604.51,0.33084647]
[1743433258856,0.83789715,605.57,604.51,0.33084647]
[1743433259055,0.83789715,605.56,604.51,0.33084647]
[1743433259359,0.83789715,605.55,604.51,0.33084647]
[1743433259560,0.83789715,605.54,604.51,0.33084647]
[1743433259754,0.83789715,605.53,604.51,0.33084647]
[1743433259956,0.83789715,605.52,604.51,0.33084647]
[1743433260154,0.83789715,605.51,604.51,0.33084647]
[1743433260357,0.83789715,605.5,604.51,0.33084647]
[1743433260557,0.83789715,605.49,604.51,0.33084647]
[1743433260855,0.83789715,605.48,604.51,0.33084647]
[1743433261159,0.83789715,605.47,604.51,0.33084647]
[1743433261360,0.83789715,605.52,604.51,0.33084647]
[1743433261660,0.83789715,605.51,604.51,0.33084647]
[1743433261863,0.83789715,605.5,604.51,0.33084647]
[1743433262058,0.83789715,605.52,604.51,0.33084647]
[1743433262255,0.83789715,605.51,604.51,0.33084647]
[1743433262461,0.83789715,605.5,604.51,0.33084647]
[1743433262661,0.83789715,605.52,604.51,0.33084647]
[1743433262962,2.19330454,605.66,604.51,0.33084647]
[1743433263158,3.53393998,605.65,604.51,0.33084647]
[1743433263358,0.28762945,605.51,604.51,0.33084647]
[1743433263558,0.83789715,605.5,604.51,0.33084647]
[1743433263760,0.83789715,605.49,604.51,0.33084647]
[1743433264062,0.83789715,605.48,604.51,0.33084647]
[1743433264262,0.83820549,605.47,604.51,0.33084647]
[1743433264565,0.83820549,605.46,604.51,0.33084647]
[1743433264762,0.83820549,605.45,604.51,0.33084647]
[1743433264959,0.83820549,605.44,604.51,0.33084647]
[1743433265163,0.83820549,605.43,604.51,0.33084647]
[1743433265458,0.83820549,605.49,604.51,0.33084647]
[1743433265661,0.83820549,605.48,604.51,0.33084647]
[1743433265860,0.83820549,605.47,604.51,0.33084647]
[1743433266061,0.83820549,605.46,604.51,0.33084647]
[1743433266260,0.83820549,605.45,604.51,0.33084647]
[1743433266459,0.83820549,605.44,604.51,0.33084647]
[1743433266664,0.83820549,605.43,604.51,0.33084647]
[1743433266862,0.83820549,605.42,604.51,0.33084647]
[1743433267058,0.83820549,605.41,604.51,0.33084647]
[1743433267257,0.83820549,605.4,604.51,0.33084647]
[1743433267464,0.28762708,605.5,604.51,0.33084647]
[1743433267465,0.83820549,605.39,604.51,0.33084647]
[1743433267662,0.83820549,605.38,604.51,0.33084647]
[1743433267860,0.28762708,605.5,604.51,0.33084647]
[1743433267861,0.83820549,605.37,604.51,0.33084647]
[1743433268061,0.83820549,605.36,604.51,0.33084647]
[1743433268261,0.83820549,605.35,604.51,0.33084647]
[1743433268459,2.19305684,605.47,604.51,0.33084647]
[1743433268666,2.19305684,605.46,604.51,0.33084647]
[1743433268868,0.83820549,605.45,604.51,0.33084647]
[1743433269168,0.83820549,605.44,604.51,0.33084647]
[1743433269668,0.2876782,605.45,604.51,0.33084647]
[1743433271871,4.51506714,605.74,604.51,0.33084647]
[1743433272063,0.98500769,605.72,604.51,0.33084647]
[1743433272263,3.53005945,605.73,604.51,0.33084647]
[1743433272264,0.28763896,605.44,604.51,0.33084647]
[1743433272464,2.69306918,605.7,604.51,0.33084647]
[1743433272663,2.69306918,605.69,604.51,0.33084647]
[1743433272970,0.28763302,605.44,604.51,0.33084647]
[1743433273271,2.69306918,605.67,604.51,0.33084647]
[1743433273566,0.28763659,605.44,604.51,0.33084647]
[1743433273771,0.98501955,605.63,604.51,0.33084647]
[1743433273966,3.53015589,605.62,604.51,0.33084647]
[1743433274271,0.28762945,605.43,604.51,0.33084647]
[1743433274471,2.065,605.62,604.51,0.33084647]
[1743433274472,2.69310709,605.6,604.51,0.33084647]
[1743433274671,2.69310709,605.59,604.51,0.33084647]
[1743433274869,0.2876354,605.42,604.51,0.33084647]
[1743433275068,1.353912,605.57,604.51,0.33084647]
[1743433275274,1.353912,605.59,604.51,0.33084647]
[1743433275473,0.28763896,605.41,604.51,0.33084647]
[1743433275773,1.353912,605.57,604.51,0.33084647]
[1743433275976,0.28763896,605.4,604.51,0.33084647]
[1743433276273,1.353912,605.57,604.51,0.33084647]
[1743433276474,1.353912,605.56,604.51,0.33084647]
[1743433276676,0.2876568,605.39,604.51,0.33084647]
[1743433276873,0.83694559,605.38,604.51,0.33084647]
[1743433277072,0.83694559,605.37,604.51,0.33084647]
[1743433277269,0.83702044,605.36,604.51,0.33084647]
[1743433277470,0.83702044,605.35,604.51,0.33084647]
[1743433277673,0.83702044,605.34,604.51,0.33084647]
[1743433277970,0.83702044,605.33,604.51,0.33084647]
[1743433278274,0.28771031,605.33,604.51,0.33084647]
[1743433278674,0.83702044,605.32,604.51,0.33084647]
[1743433279174,0.83702044,605.31,604.51,0.33084647]
[1743433279370,0.83702044,605.3,604.51,0.33084647]
[1743433279568,2.19093244,605.29,604.51,0.33084647]
[1743433279769,2.19093244,605.28,604.51,0.33084647]
[1743433279972,2.19093244,605.27,604.51,0.33084647]
[1743433280172,0.28771031,605.33,604.51,0.33084647]
[1743433280173,2.19093244,605.26,604.51,0.33084647]
[1743433280368,0.83702044,605.25,604.51,0.33084647]
[1743433280573,0.28771031,605.33,604.51,0.33084647]
[1743433280574,0.83702044,605.24,604.51,0.33084647]
[1743433280771,0.83702044,605.23,604.51,0.33084647]
[1743433280975,0.83558529,605.22,604.51,0.33084647]
[1743433281175,0.83558529,605.21,604.51,0.33084647]
[1743433281377,0.83558529,605.2,604.51,0.33084647]
[1743433281575,0.83558529,605.21,604.51,0.33084647]
[1743433281775,0.83558529,605.2,604.51,0.33084647]
[1743433281974,0.83558529,605.21,604.51,0.33084647]
[1743433283074,0.28781619,605.22,604.51,0.33084647]
[1743433283274,0.83558529,605.21,604.51,0.33084647]
[1743433283474,0.83558529,605.2,604.51,0.33084647]
[1743433283672,0.83558529,605.19,604.51,0.33084647]
[1743433283872,0.83558529,605.21,604.51,0.33084647]
[1743433284178,0.83558529,605.2,604.51,0.33084647]
[1743433284378,0.83558529,605.21,604.51,0.33084647]
[1743433284580,0.83558529,605.2,604.51,0.33084647]
[1743433284773,0.83399085,605.21,604.51,0.33084647]
[1743433285077,0.83399085,605.2,604.51,0.33084647]
[1743433285273,0.83399085,605.21,604.51,0.33084647]
[1743433285471,0.83399085,605.41,604.51,0.33084647]
[1743433285671,0.83399085,605.4,604.51,0.33084647]
[1743433285871,0.28776384,605.28,604.51,0.33084647]
[1743433286073,0.83399085,605.38,604.51,0.33084647]
[1743433286275,0.83399085,605.37,604.51,0.33084647]
[1743433286473,0.28774242,605.28,604.51,0.33084647]
[1743433286675,2.18251947,605.45,604.51,0.33084647]
[1743433286979,0.28773885,605.32,604.51,0.33084647]
[1743433287374,0.83399085,605.42,604.51,0.33084647]
[1743433287577,0.28772577,605.32,604.51,0.33084647]
[1743433288076,1.38,605.45,604.51,0.33084647]
[1743433288282,0.28770079,605.32,604.51,0.33084647]
[1743433288580,2.71449527,605.45,604.51,0.33084647]
[1743433288780,0.28771506,605.31,604.51,0.33084647]
[1743433289180,1.38,605.45,604.51,0.33084647]
[1743433289381,0.28770555,605.3,604.51,0.33084647]
[1743433289779,1.38,605.45,604.51,0.33084647]
[1743433289977,0.28771149,605.29,604.51,0.33084647]
[1743433290382,1.38,605.45,604.51,0.33084647]
[1743433290878,0.28771149,605.28,604.51,0.33084647]
[1743433291082,1.38,605.45,604.51,0.33084647]
[1743433291377,0.28771149,605.44,604.51,0.33084647]
[1743433292878,1.38,605.45,604.51,0.33084647]
[1743433293283,0.28774599,605.43,604.51,0.33084647]
[1743433294282,0.83437553,605.42,604.51,0.33084647]
[1743433294476,0.83431037,605.41,604.51,0.33084647]
[1743433294681,0.83431037,605.4,604.51,0.33084647]
[1743433294878,0.83431037,605.39,604.51,0.33084647]
[1743433295079,0.83431037,605.38,604.51,0.33084647]
[1743433295383,0.83431037,605.37,604.51,0.33084647]
[1743433295577,0.83431037,605.36,604.51,0.33084647]
[1743433295782,1.34960847,605.41,604.51,0.33084647]
[1743433295978,1.563,605.42,604.51,0.33084647]
[1743433296381,0.2877567,605.41,604.51,0.33084647]
[1743433296689,2.1839421,605.4,604.51,0.33084647]
[1743433296986,2.1839421,605.39,604.51,0.33084647]
[1743433297187,0.83433363,605.38,604.51,0.33084647]
[1743433297386,1.34960847,605.4,604.51,0.33084647]
[1743433297387,0.83433363,605.37,604.51,0.33084647]
[1743433297583,0.83433363,605.36,604.51,0.33084647]
[1743433297785,0.83433363,605.35,604.51,0.33084647]
[1743433297982,0.83433363,605.34,604.51,0.33084647]
[1743433298180,0.83430956,605.33,604.51,0.33084647]
[1743433298385,0.83430956,605.32,604.51,0.33084647]
[1743433298586,0.83430956,605.31,604.51,0.33084647]
[1743433298788,0.83430956,605.3,604.51,0.33084647]
[1743433298988,0.83430956,605.29,604.51,0.33084647]
[1743433299183,0.83430956,605.28,604.51,0.33084647]
[1743433299388,0.83430956,605.27,604.51,0.33084647]
[1743433299588,0.83430956,605.26,604.51,0.33084647]
[1743433299785,0.83418713,605.25,604.51,0.33084647]
[1743433299986,0.83418713,605.24,604.51,0.33084647]
[1743433300182,0.83418713,605.28,604.51,0.33084647]
[1743433300382,0.28779596,605.29,604.51,0.33084647]
[1743433300587,0.83421195,605.28,604.51,0.33084647]
[1743433300791,0.83421195,605.27,604.51,0.33084647]
[1743433300991,2.97195282,605.29,604.51,0.33084647]
[1743433301192,1.63705751,605.29,604.51,0.33084647]
[1743433301485,1.952,605.28,604.51,0.33084647]
[1743433301692,0.83416619,605.27,604.51,0.33084647]
[1743433301990,1.952,605.28,604.51,0.33084647]
[1743433302293,0.28778049,605.26,604.51,0.33084647]
[1743433304992,0.83464484,605.27,604.51,0.33084647]
[1743433305287,0.28777097,605.25,604.51,0.33084647]
[1743433307591,1.12288327,605.25,604.51,0.33084647]
[1743433307794,0.28777097,605.25,604.51,0.33084647]
[1743433307990,0.8351123,605.27,604.51,0.33084647]
[1743433308293,0.28775908,605.24,604.51,0.33084647]
[1743433310996,1.952,605.28,604.51,0.33084647]
[1743433311391,0.28774599,605.24,604.51,0.33084647]
[1743433311890,1.952,605.28,604.51,0.33084647]
[1743433315691,1.518,605.27,604.51,0.33084647]
[1743433320499,1.643,605.26,604.51,0.33084647]
[1743433322904,1.857,605.25,604.51,0.33084647]
[1743433323600,4.05018965,605.25,604.51,0.33084647]
[1743433323804,0.83783289,605.24,604.51,0.33084647]
[1743433324007,0.83783289,605.23,604.51,0.33084647]
[1743433324203,0.83783289,605.22,604.51,0.33084647]
[1743433324404,0.83783289,605.21,604.51,0.33084647]
[1743433324604,0.83801347,605.24,604.51,0.33084647]
[1743433324799,0.83801347,605.23,604.51,0.33084647]
[1743433324998,0.83801347,605.22,604.51,0.33084647]
[1743433325203,0.83801347,605.21,604.51,0.33084647]
[1743433325402,0.83801347,605.24,604.51,0.33084647]
[1743433325599,0.83801347,605.23,604.51,0.33084647]
[1743433325906,0.83801347,605.22,604.51,0.33084647]
[1743433326099,0.83801347,605.21,604.51,0.33084647]
[1743433326301,0.83801347,605.2,604.51,0.33084647]
[1743433326501,0.83801347,605.19,604.51,0.33084647]
[1743433326699,0.83801347,605.18,604.51,0.33084647]
[1743433326900,0.83801347,605.17,604.51,0.33084647]
[1743433327104,0.83801347,605.16,604.51,0.33084647]
[1743433327304,0.83801347,605.15,604.51,0.33084647]
[1743433327506,0.83801347,605.14,604.51,0.33084647]
[1743433327805,0.83801347,605.13,604.51,0.33084647]
[1743433328006,0.83801347,605.12,604.51,0.33084647]
[1743433328198,0.83801347,605.11,604.51,0.33084647]
[1743433328403,0.83801347,605.1,604.51,0.33084647]
[1743433328600,0.83801347,605.09,604.51,0.33084647]
[1743433328803,0.8382447,605.08,604.51,0.33084647]
[1743433329005,1.857,605.25,604.51,0.33084647]
[1743433329006,0.8382447,605.07,604.51,0.33084647]
[1743433329209,0.8382447,605.06,604.51,0.33084647]
[1743433329408,0.8382447,605.05,604.51,0.33084647]
[1743433329609,0.8382447,605.04,604.51,0.33084647]
[1743433329911,0.8382447,605.09,604.51,0.33084647]
[1743433330107,2.19413283,605.08,604.51,0.33084647]
[1743433330304,2.19413283,605.07,604.51,0.33084647]
[1743433330601,2.19413283,605.06,604.51,0.33084647]
[1743433330807,2.19413283,605.05,604.51,0.33084647]
[1743433331106,3.53532436,605.04,604.51,0.33084647]
[1743433331304,3.53532436,605.03,604.51,0.33084647]
[1743433331502,2.19413283,605.02,604.51,0.33084647]
[1743433331705,0.8382447,605.01,604.51,0.33084647]
[1743433331907,0.8382447,605.0,604.51,0.33084647]
[1743433332106,0.8382447,604.99,604.51,0.33084647]
[1743433332306,0.83811705,604.98,604.51,0.33084647]
[1743433332503,0.83811705,604.97,604.51,0.33084647]
[1743433332705,0.83811705,604.98,604.51,0.33084647]
[1743433332903,0.83811705,605.04,604.51,0.33084647]
[1743433333113,2.1936643,605.14,604.51,0.33084647]
[1743433333302,4.95207364,607.08,604.51,0.33084647]
[1743433333303,0.83811705,605.13,604.51,0.33084647]
[1743433333503,0.83811705,605.12,604.51,0.33084647]
[1743433333805,0.83811705,605.11,604.51,0.33084647]
[1743433334003,0.83811705,605.1,604.51,0.33084647]
[1743433334208,0.83811705,605.09,604.51,0.33084647]
[1743433334406,0.83811705,605.08,604.51,0.33084647]
[1743433334604,0.83811705,605.07,604.51,0.33084647]
[1743433334811,0.83811705,605.15,604.51,0.33084647]
[1743433335004,0.83811705,605.14,604.51,0.33084647]
[1743433335206,0.83811705,605.15,604.51,0.33084647]
[1743433335409,0.83811705,605.14,604.51,0.33084647]
[1743433335604,0.83811705,605.15,604.51,0.33084647]
[1743433335808,0.83811705,605.14,604.51,0.33084647]
[1743433336011,0.83813027,605.13,604.51,0.33084647]
[1743433336308,0.83813027,605.15,604.51,0.33084647]
[1743433336511,0.28781738,605.16,604.51,0.33084647]
[1743433336512,0.83813027,605.14,604.51,0.33084647]
[1743433336712,0.28781738,605.16,604.51,0.33084647]
[1743433336912,0.83813027,605.15,604.51,0.33084647]
[1743433337112,0.83813027,605.14,604.51,0.33084647]
[1743433337313,0.83813027,605.13,604.51,0.33084647]
[1743433337512,0.83813027,605.12,604.51,0.33084647]
[1743433337714,0.83813027,605.11,604.51,0.33084647]
[1743433337913,0.83813027,605.1,604.51,0.33084647]
[1743433338112,0.83813027,605.09,604.51,0.33084647]
[1743433338311,0.83813027,605.08,604.51,0.33084647]
[1743433338511,0.28778406,605.11,604.51,0.33084647]
[1743433338714,0.83813027,605.21,604.51,0.33084647]
[1743433338918,0.83813027,605.2,604.51,0.33084647]
[1743433339118,0.83813027,605.19,604.51,0.33084647]
[1743433339418,0.83813027,605.18,604.51,0.33084647]
[1743433339617,0.83813027,605.17,604.51,0.33084647]
[1743433339810,0.83813027,605.16,604.51,0.33084647]
[1743433340012,0.83813027,605.15,604.51,0.33084647]
[1743433340214,0.83813027,605.14,604.51,0.33084647]
[1743433340416,0.83813027,605.13,604.51,0.33084647]
[1743433340617,0.83813027,605.18,604.51,0.33084647]
[1743433340817,0.83813027,605.17,604.51,0.33084647]
[1743433341019,0.83813027,605.16,604.51,0.33084647]
[1743433341219,0.83813027,605.15,604.51,0.33084647]
[1743433341421,0.2877793,605.21,604.51,0.33084647]
[1743433341613,0.83813027,605.2,604.51,0.33084647]
[1743433341816,0.83841513,605.19,604.51,0.33084647]
[1743433342017,0.83841513,605.18,604.51,0.33084647]
[1743433342215,0.83841513,605.17,604.51,0.33084647]
[1743433342417,0.83841513,605.23,604.51,0.33084647]
[1743433342618,0.83841513,605.24,604.51,0.33084647]
[1743433342819,1.857,605.25,604.51,0.33084647]
[1743433347427,1.575,605.24,604.51,0.33084647]
[1743433347617,2.69266244,605.84,604.51,0.33084647]
[1743433347817,3.52948066,605.84,604.51,0.33084647]
[1743433348018,1.35372643,605.83,604.51,0.33084647]
[1743433348216,2.69266244,605.98,604.51,0.33084647]
[1743433348521,1.971,605.83,604.51,0.33084647]
[1743433366133,0.28769128,605.82,604.51,0.33084647]
[1743433367931,1.971,605.83,604.51,0.33084647]
[1743433368337,2.25865085,605.83,604.51,0.33084647]
[1743433368936,1.971,605.83,604.51,0.33084647]
[1743433371542,0.28761994,605.92,604.51,0.33084647]
[1743433374042,1.939,606.07,604.51,0.33084647]
[1743433374442,0.28757479,605.92,604.51,0.33084647]
[1743433374742,1.939,606.07,604.51,0.33084647]
[1743433374935,2.183,605.91,604.51,0.33084647]
[1743433375836,0.28763777,605.9,604.51,0.33084647]
[1743433377044,2.183,605.91,604.51,0.33084647]
[1743433377338,0.28762113,605.89,604.51,0.33084647]
[1743433380143,2.183,605.91,604.51,0.33084647]
[1743433380340,0.28759499,605.88,604.51,0.33084647]
[1743433381240,2.183,605.91,604.51,0.33084647]
[1743433386347,0.28756053,605.9,604.51,0.33084647]
[1743433390049,2.158,605.89,604.51,0.33084647]
[1743433398453,0.2875332,605.88,604.51,0.33084647]
[1743433401051,2.158,605.89,604.51,0.33084647]
[1743433401250,1.97647382,605.87,604.51,0.33084647]
[1743433402555,0.83328685,605.86,604.51,0.33084647]
[1743433402755,0.83328685,605.85,604.51,0.33084647]
[1743433402956,0.83328685,605.84,604.51,0.33084647]
[1743433403251,2.18136899,605.85,604.51,0.33084647]
[1743433403455,0.83332269,605.84,604.51,0.33084647]
[1743433403655,0.83332269,605.83,604.51,0.33084647]
[1743433403856,0.83332269,605.82,604.51,0.33084647]
[1743433404058,0.83385616,605.81,604.51,0.33084647]
[1743433404359,0.83385616,605.8,604.51,0.33084647]
[1743433404555,0.83385616,605.79,604.51,0.33084647]
[1743433404760,0.83385616,605.78,604.51,0.33084647]
[1743433405053,0.83385616,605.77,604.51,0.33084647]
[1743433405253,0.83385616,605.81,604.51,0.33084647]
[1743433405560,0.83385616,605.8,604.51,0.33084647]
[1743433405853,0.83385616,605.79,604.51,0.33084647]
[1743433406054,0.83385616,605.78,604.51,0.33084647]
[1743433406256,0.83385616,605.77,604.51,0.33084647]
[1743433406452,0.83385616,605.76,604.51,0.33084647]
[1743433406658,0.83385616,605.75,604.51,0.33084647]
[1743433406953,0.83385616,605.78,604.51,0.33084647]
[1743433407154,0.83385616,605.77,604.51,0.33084647]
[1743433407358,0.28758548,605.74,604.51,0.33084647]
[1743433409260,0.83448318,605.73,604.51,0.33084647]
[1743433409461,0.83448318,605.72,604.51,0.33084647]
[1743433409660,0.83429569,605.73,604.51,0.33084647]
[1743433409956,0.83429569,605.72,604.51,0.33084647]
[1743433410260,0.83429569,605.71,604.51,0.33084647]
[1743433410459,0.83429569,605.7,604.51,0.33084647]
[1743433410653,0.83429569,605.73,604.51,0.33084647]
[1743433410857,0.83429569,605.72,604.51,0.33084647]
[1743433411057,0.83429569,605.71,604.51,0.33084647]
[1743433411258,0.83429569,605.7,604.51,0.33084647]
[1743433411458,0.28758548,605.74,604.51,0.33084647]
[1743433411660,0.83390371,605.73,604.51,0.33084647]
[1743433411860,0.83390371,605.72,604.51,0.33084647]
[1743433412061,0.83390371,605.71,604.51,0.33084647]
[1743433412261,0.83390371,605.7,604.51,0.33084647]
[1743433412462,0.83390371,605.69,604.51,0.33084647]
[1743433412762,0.83390371,605.73,604.51,0.33084647]
[1743433412956,0.83390371,605.72,604.51,0.33084647]
[1743433413157,0.83390371,605.71,604.51,0.33084647]
[1743433413361,0.83390371,605.7,604.51,0.33084647]
[1743433413559,0.83390371,605.69,604.51,0.33084647]
[1743433413758,0.83390371,605.68,604.51,0.33084647]
[1743433413961,0.83390371,605.67,604.51,0.33084647]
[1743433414160,0.83390371,605.66,604.51,0.33084647]
[1743433414361,0.83390371,605.73,604.51,0.33084647]
[1743433414664,0.83390371,605.72,604.51,0.33084647]
[1743433414858,0.28758548,605.74,604.51,0.33084647]
[1743433414859,0.83390371,605.71,604.51,0.33084647]
[1743433415057,0.83390371,605.7,604.51,0.33084647]
[1743433415263,0.83368504,605.69,604.51,0.33084647]
[1743433415467,0.83368504,605.68,604.51,0.33084647]
[1743433415660,0.83368504,605.67,604.51,0.33084647]
[1743433415957,0.83368504,605.66,604.51,0.33084647]
[1743433416158,0.83368504,605.65,604.51,0.33084647]
[1743433416460,0.83368504,605.64,604.51,0.33084647]
[1743433416662,0.83368504,605.63,604.51,0.33084647]
[1743433416861,0.83368504,605.62,604.51,0.33084647]
[1743433417063,0.83368504,605.61,604.51,0.33084647]
[1743433417363,0.83368504,605.6,604.51,0.33084647]
[1743433417557,0.28765798,605.66,604.51,0.33084647]
[1743433417758,0.83372022,605.65,604.51,0.33084647]
[1743433417958,0.83372022,605.64,604.51,0.33084647]
[1743433418263,0.83372022,605.63,604.51,0.33084647]
[1743433418466,0.83372022,605.62,604.51,0.33084647]
[1743433418766,0.83372022,605.61,604.51,0.33084647]
[1743433419059,1.34861743,605.66,604.51,0.33084647]
[1743433419259,0.83384136,605.65,604.51,0.33084647]
[1743433419465,0.28768652,605.6,604.51,0.33084647]
[1743433419764,0.83384136,605.59,604.51,0.33084647]
[1743433419963,0.83384136,605.58,604.51,0.33084647]
[1743433420160,0.83384136,605.57,604.51,0.33084647]
[1743433420458,0.83384136,605.56,604.51,0.33084647]
[1743433420663,0.83384136,605.55,604.51,0.33084647]
[1743433420863,0.28768652,605.6,604.51,0.33084647]
[1743433420864,0.83384136,605.54,604.51,0.33084647]
[1743433421063,0.83384136,605.53,604.51,0.33084647]
[1743433421361,0.83384136,605.52,604.51,0.33084647]
[1743433421659,0.83384136,605.51,604.51,0.33084647]
[1743433421859,0.83384136,605.5,604.51,0.33084647]
[1743433422065,0.83384136,605.59,604.51,0.33084647]
[1743433422262,0.83384136,605.58,604.51,0.33084647]
[1743433422463,2.52205337,606.7,604.51,0.33084647]
[1743433422464,0.28773409,605.49,604.51,0.33084647]
[1743433422663,0.83384136,605.56,604.51,0.33084647]
[1743433422863,0.83384136,605.55,604.51,0.33084647]
[1743433423063,0.28772577,605.48,604.51,0.33084647]
[1743433424967,0.8334367,605.67,604.51,0.33084647]
[1743433425159,0.8334367,605.66,604.51,0.33084647]
[1743433425364,0.28767463,605.47,604.51,0.33084647]
[1743433425560,0.8334367,605.65,604.51,0.33084647]
[1743433425767,2.52205337,606.49,604.51,0.33084647]
[1743433425768,0.8334367,605.64,604.51,0.33084647]
[1743433426066,0.28767225,605.47,604.51,0.33084647]
[1743433426267,0.8334367,605.62,604.51,0.33084647]
[1743433426562,0.28770436,605.46,604.51,0.33084647]
[1743433426769,0.8334367,605.6,604.51,0.33084647]
[1743433426961,0.8334367,605.59,604.51,0.33084647]
[1743433427165,0.28770674,605.45,604.51,0.33084647]
[1743433427562,0.8334367,605.56,604.51,0.33084647]
[1743433427767,0.28771506,605.44,604.51,0.33084647]
[1743433428169,0.8334367,605.43,604.51,0.33084647]
[1743433428469,0.28773647,605.43,604.51,0.33084647]
[1743433428667,0.8334367,605.42,604.51,0.33084647]
[1743433428969,0.8334367,605.41,604.51,0.33084647]
[1743433429169,0.8334367,605.42,604.51,0.33084647]
[1743433429373,0.8334367,605.41,604.51,0.33084647]
[1743433429564,0.8334367,605.42,604.51,0.33084647]
[1743433429767,0.8334367,605.41,604.51,0.33084647]
[1743433429964,0.8334367,605.42,604.51,0.33084647]
[1743433430670,0.28773647,605.43,604.51,0.33084647]
[1743433431063,0.97926785,605.67,604.51,0.33084647]
[1743433431064,0.83208998,605.52,604.51,0.33084647]
[1743433431264,0.83208998,605.51,604.51,0.33084647]
[1743433431468,0.28777216,605.42,604.51,0.33084647]
[1743433431664,0.83208998,605.49,604.51,0.33084647]
[1743433431872,0.83208998,605.48,604.51,0.33084647]
[1743433432066,0.28774242,605.41,604.51,0.33084647]
[1743433432368,2.16343395,605.66,604.51,0.33084647]
[1743433432569,0.28774361,605.4,604.51,0.33084647]
[1743433432865,0.83208998,605.64,604.51,0.33084647]
[1743433433064,2.30074599,605.39,604.51,0.33084647]
[1743433433468,2.013,605.39,604.51,0.33084647]
[1743433433668,0.28777692,605.38,604.51,0.33084647]
[1743433435164,1.422,605.37,604.51,0.33084647]